bitfinex-derivatives/quotes_BNBF0:USTF0_20250810
["timestamp","ask_amount","ask_price","bid_price","bid_amount"]
[1754863544039,0.83660911,803.14,801.83,1.1123253]
[1754863544242,0.83660911,802.76,801.64,1.1123253]
[1754863545139,0.83660911,802.83,801.65,1.1123253]
[1754863545437,0.83660911,802.84,801.59,1.1123253]
[1754863546136,0.83660911,802.84,801.58,1.1123253]
[1754863546339,0.83660911,802.85,801.52,1.1123253]
[1754863546539,0.83660911,802.83,801.5,1.1123253]
[1754863547240,0.83660911,802.84,801.44,1.1123253]
[1754863547438,0.83660911,802.85,801.45,1.1123253]
[1754863547637,0.83660911,802.88,801.48,1.1123253]
[1754863547843,0.83660911,802.89,801.49,1.1123253]
[1754863548245,0.83660911,802.9,801.45,1.1123253]
[1754863548444,1.6680427,803.21,800.36,3.9232243]
[1754863548445,0.83660911,802.92,801.42,1.1123253]
[1754863548646,0.83660911,802.9,801.4,1.1123253]
[1754863549445,0.83660911,802.9,801.36,1.1123253]
[1754863549941,0.83660911,802.91,801.36,1.1123253]
[1754863550239,0.83660911,802.91,801.33,1.1123253]
[1754863550846,0.83660911,802.92,801.32,1.1123253]
[1754863551243,0.83660911,802.93,801.29,1.1123253]
[1754863551846,0.83660911,802.92,801.29,1.1123253]
[1754863552443,0.83660911,802.95,801.29,1.1123253]
[1754863552643,0.83660911,802.99,801.24,1.1123253]
[1754863553246,0.83660911,803.19,801.26,1.1123253]
[1754863554346,0.83660911,803.19,801.25,1.1123253]
[1754863555241,0.83660911,803.18,801.22,1.1123253]
[1754863556344,0.83660911,803.18,801.21,1.1123253]
[1754863557243,0.83660911,803.18,801.2,1.1123253]
[1754863558244,0.83660911,803.21,801.22,1.1123253]
[1754863558448,0.83660911,803.2,801.22,1.1123253]
[1754863559250,0.83660911,803.2,801.21,1.1123253]
[1754863560149,0.83660911,803.25,801.17,1.1123253]
[1754863560345,0.83660911,803.33,801.34,1.1123253]
[1754863560646,0.83660911,803.36,801.37,1.1123253]
[1754863561051,0.83660911,803.35,801.38,1.1123253]
[1754863561252,0.83660911,803.29,801.46,1.1123253]
[1754863561453,0.83660911,803.31,801.46,1.1123253]
[1754863561750,0.83660911,803.34,801.49,1.1123253]
[1754863562154,0.83660911,803.33,801.49,1.1123253]
[1754863563352,0.83660911,803.33,801.5,1.1123253]
[1754863563549,0.83660911,803.29,801.55,1.1123253]
[1754863564153,0.83660911,803.29,801.56,1.1123253]
[1754863565149,0.83660911,803.28,801.56,1.1123253]
[1754863566356,0.83660911,803.28,801.57,1.1123253]
[1754863567257,0.83660911,803.26,801.55,1.1123253]
[1754863567557,0.83660911,803.4,801.53,1.1123253]
[1754863567753,0.83660911,803.46,801.59,1.1123253]
[1754863567953,0.83660911,803.47,801.59,1.1123253]
[1754863568154,0.21683324,803.54,801.59,1.1123253]
[1754863568357,0.83067203,803.47,801.6,1.1123253]
[1754863568657,0.83067203,803.52,801.55,1.1123253]
[1754863568857,0.83067203,803.53,801.56,1.1123253]
[1754863569352,0.83067203,803.44,801.46,1.1123253]
[1754863569557,0.83067203,803.42,801.44,1.1123253]
[1754863570256,0.83067203,803.42,801.45,1.1123253]
[1754863570653,0.83067203,803.48,801.37,1.1123253]
[1754863570955,0.83067203,803.47,801.36,1.1123253]
[1754863571153,0.83067203,803.49,801.39,1.1123253]
[1754863572154,0.83067203,803.49,801.4,1.1123253]
[1754863573656,0.83067203,803.45,801.45,1.1123253]
[1754863573858,0.83067203,803.49,801.49,1.1123253]
[1754863574357,0.83067203,803.49,801.5,1.1123253]
[1754863575159,0.83067203,803.42,801.45,1.1123253]
[1754863575355,0.83159787,803.42,801.45,1.1123253]
[1754863575760,0.21683324,803.54,801.45,1.1123253]
[1754863575761,0.83159787,803.34,801.45,1.1123253]
[1754863576059,0.83159787,803.3,801.41,1.1123253]
[1754863576257,0.83159787,803.3,801.42,1.1123253]
[1754863576661,0.21705978,802.84,801.42,1.1123253]
[1754863577259,0.21705978,802.84,801.17,1.6684879]
[1754863577260,0.21705978,802.84,801.43,1.1123253]
[1754863578156,0.21705978,802.84,801.44,1.1123253]
[1754863578361,0.21705978,802.84,801.45,1.1123253]
[1754863579060,0.21705978,802.84,801.46,1.1123253]
[1754863579262,0.21705978,802.84,801.47,1.1123253]
[1754863579665,0.21705978,802.84,801.49,1.1123253]
[1754863580170,0.21705978,802.84,801.5,1.1123253]
[1754863580562,0.21705978,802.84,801.51,1.1123253]
[1754863580965,0.21705978,802.84,801.5,1.1123253]
[1754863581266,0.21705978,802.84,801.52,1.1123253]
[1754863581461,0.21705978,802.84,801.54,1.1123253]
[1754863581664,0.21705978,802.84,801.56,1.1123253]
[1754863581862,0.21705978,802.84,801.57,1.1123253]
[1754863582366,0.21705978,802.84,801.58,1.1123253]
[1754863582865,0.21705978,802.84,801.57,1.1123253]
[1754863583166,0.21705978,802.84,801.59,1.1123253]
[1754863584264,0.21705978,802.84,801.61,1.1123253]
[1754863585168,0.21705978,802.84,801.7,1.1123253]
[1754863585364,0.21705978,802.84,801.74,1.1123253]
[1754863585665,0.21705978,802.84,801.84,1.1123253]
[1754863586269,0.21705978,802.84,801.87,1.1123253]
[1754863587166,0.21705978,802.84,801.89,1.1123253]
[1754863588271,0.21705978,802.84,801.91,1.1123253]
[1754863588470,0.21705978,802.84,801.92,1.1123253]
[1754863589272,0.21705978,802.84,801.94,1.1123253]
[1754863590268,0.21705978,802.84,801.97,1.1123253]
[1754863590469,0.21705978,802.84,802.01,1.1123253]
[1754863591173,0.21705978,802.84,801.98,1.1123253]
[1754863591372,0.21705978,802.84,802.01,1.1123253]
[1754863592074,0.21705978,802.84,802.02,1.1123253]
[1754863592370,0.21705978,802.84,802.05,1.1123253]
[1754863592870,0.21705978,802.84,802.07,1.1123253]
[1754863593474,0.21705978,802.84,802.09,1.1123253]
[1754863594075,0.21705978,802.84,802.08,1.1123253]
[1754863594278,0.21705978,802.84,802.1,1.1123253]
[1754863594575,0.21705978,802.84,801.92,1.6684879]
[1754863594576,0.21705978,802.84,802.09,1.1123253]
[1754863595070,0.21705978,802.84,802.08,1.1123253]
[1754863595280,0.21705978,802.84,802.09,1.1123253]
[1754863596275,0.21705978,802.84,802.1,1.1123253]
[1754863597279,0.21705978,802.84,802.11,1.1123253]
[1754863598079,0.21705978,802.84,802.1,1.1123253]
[1754863600875,0.21705978,802.84,802.11,1.1123253]
[1754863601081,0.21705978,802.84,802.14,1.1123253]
[1754863601476,0.21705978,802.84,802.13,1.1123253]
[1754863601677,0.21705978,802.84,802.12,1.1123253]
[1754863602982,0.21705978,802.84,802.08,1.1123253]
[1754863603182,0.21705978,802.84,802.05,1.1123253]
[1754863603383,0.21705978,802.84,802.11,1.1123253]
[1754863603583,0.21705978,802.84,802.21,1.1123253]
[1754863603783,0.21705978,802.84,802.16,1.1123253]
[1754863603979,0.21705978,802.84,802.17,1.1123253]
[1754863604278,0.21705978,802.84,802.15,1.1123253]
[1754863605382,0.21705978,802.84,802.16,1.1123253]
[1754863606085,0.21705978,802.84,802.15,1.1123253]
[1754863606384,0.21705978,802.84,802.17,1.1123253]
[1754863607084,0.21705978,802.84,802.16,1.1123253]
[1754863607280,0.21705978,802.84,802.18,1.1123253]
[1754863607480,0.21705978,802.84,802.21,1.1123253]
[1754863608183,0.21705978,802.84,802.2,1.1123253]
[1754863608380,0.21705978,802.84,802.21,1.1123253]
[1754863609385,0.21705978,802.84,802.23,1.1123253]
[1754863609581,0.21705978,802.84,801.24,2.8023031]
[1754863609582,0.21705978,802.84,802.2,1.1123253]
[1754863609782,0.21705978,802.84,802.0,1.6684879]
[1754863609783,0.21705978,802.84,802.21,1.1123253]
[1754863610287,0.21705978,802.84,802.23,1.1123253]
[1754863611287,0.21705978,802.84,802.24,1.1123253]
[1754863612088,0.21705978,802.84,802.2,1.1123253]
[1754863612285,0.21705978,802.84,802.21,1.1123253]
[1754863613590,0.21705978,802.84,802.24,1.1123253]
[1754863614192,0.21705978,802.84,802.25,1.1123253]
[1754863615092,0.21705978,802.84,802.26,1.1123253]
[1754863615391,0.21705978,802.84,802.27,1.1123253]
[1754863617391,0.21705978,802.84,802.28,1.1123253]
[1754863617989,0.21705978,802.84,802.29,1.1123253]
[1754863619295,0.21705978,802.84,801.24,2.8023031]
[1754863619296,0.21705978,802.84,802.3,1.1123253]
[1754863619495,0.21705978,802.84,802.32,1.1123253]
[1754863620395,0.21705978,802.84,802.31,1.1123253]
[1754863620994,0.21705978,802.84,802.32,1.1123253]
[1754863622096,0.21705978,802.84,802.13,1.6684879]
[1754863622097,0.21705978,802.84,802.39,1.1123253]
[1754863622297,0.21705978,802.84,802.41,1.1123253]
[1754863622697,0.21705978,802.84,802.4,1.1123253]
[1754863623093,0.21705978,802.84,802.41,1.1123253]
[1754863625295,0.21705978,802.84,802.34,1.1123253]
[1754863626298,0.21705978,802.84,802.36,1.1123253]
[1754863627997,0.21705978,802.84,802.22,1.6684879]
[1754863627998,0.21705978,802.84,802.37,1.1123253]
[1754863630405,0.21705978,802.84,802.38,1.1123253]
[1754863631602,0.21705978,802.84,802.39,1.1123253]
[1754863632000,0.21705978,802.84,802.36,1.1123253]
[1754863635107,0.21705978,802.84,802.41,1.1123253]
[1754863636608,0.21705978,802.84,802.42,1.1123253]
[1754863638711,0.21705978,802.84,802.43,1.1123253]
[1754863640206,0.21705978,802.84,802.44,1.1123253]
[1754863641811,0.21705978,802.84,802.46,1.1123253]
[1754863642211,0.21705978,802.84,802.47,1.1123253]
[1754863642914,0.21705978,802.84,802.44,1.1123253]
[1754863644416,0.21705978,802.84,802.45,1.1123253]
[1754863644710,0.21705978,802.84,802.43,1.1123253]
[1754863644915,0.21705978,802.84,802.42,1.1123253]
[1754863645313,0.21705978,802.84,802.43,1.1123253]
[1754863645615,0.21705978,802.84,802.45,1.1123253]
[1754863648317,0.21705978,802.84,802.44,1.1123253]
[1754863649221,0.21705978,802.84,802.45,1.1123253]
[1754863649413,0.21705978,802.84,802.44,1.1123253]
[1754863654518,0.21705978,802.84,802.42,1.1123253]
[1754863654918,0.21705978,802.84,802.52,1.1123253]
[1754863655119,0.21705978,802.84,802.53,1.1123253]
[1754863656018,0.21705978,802.84,802.52,1.1123253]
[1754863656722,0.21705978,802.84,802.53,1.1123253]
[1754863658224,0.21705978,802.84,802.54,1.1123253]
[1754863659222,0.21705978,802.84,802.56,1.1123253]
[1754863659826,0.21705978,802.84,802.57,1.1123253]
[1754863660126,0.21705978,802.84,802.58,1.1123253]
[1754863660326,0.21705978,802.84,802.57,1.1123253]
[1754863662128,0.21705978,802.84,802.58,1.1123253]
[1754863663028,0.21705978,802.84,802.54,1.1123253]
[1754863663228,0.21705978,802.84,802.55,1.1123253]
[1754863664226,0.21705978,802.84,802.54,1.1123253]
[1754863664727,0.21705978,802.84,802.55,1.1123253]
[1754863665128,0.21705978,802.84,802.48,1.1123253]
[1754863665632,0.21705978,802.84,802.47,1.1123253]
[1754863665931,0.21705978,802.84,802.49,1.1123253]
[1754863666328,0.21705978,802.84,802.48,1.1123253]
[1754863667537,0.21705978,802.84,802.44,1.1123253]
[1754863668039,0.21705978,802.84,802.54,1.1123253]
[1754863668338,0.21705978,802.84,802.53,1.1123253]
[1754863668538,0.21705978,802.84,802.56,1.1123253]
[1754863669140,0.21705978,802.84,802.55,1.1123253]
[1754863669840,0.21705978,802.84,802.54,1.1123253]
[1754863671437,0.21705978,802.84,802.53,1.1123253]
[1754863673841,0.21705978,802.84,802.52,1.1123253]
[1754863675144,0.21705978,802.84,802.59,1.1123253]
[1754863675944,0.21705978,802.84,802.57,1.1123253]
[1754863676446,0.21705978,802.84,802.56,1.1123253]
[1754863677445,0.21705978,802.84,801.65,2.8023031]
[1754863677446,0.21705978,802.84,802.53,1.1123253]
[1754863677646,0.21705978,802.84,802.55,1.1123253]
[1754863677845,0.21705978,802.84,802.53,1.1123253]
[1754863680643,0.21705978,802.84,802.58,1.1123253]
[1754863680944,0.21705978,802.84,802.67,1.1123253]
[1754863685345,0.21705978,802.84,802.69,1.1123253]
[1754863688050,0.21705978,802.84,802.67,1.1123253]
[1754863688251,0.21705978,802.84,802.66,1.1123253]
[1754863688446,0.21705978,802.84,802.53,1.1123253]
[1754863688647,0.21705978,802.84,802.62,1.1123253]
[1754863689546,0.21705978,802.84,802.69,1.1123253]
[1754863692247,0.21705978,802.84,802.68,1.1123253]
[1754863694248,0.21705978,802.84,802.71,1.1123253]
[1754863694753,0.21705978,802.84,802.72,1.1123253]
[1754863696256,0.21705978,802.84,802.71,1.1123253]
[1754863696452,0.21705978,802.84,802.72,1.1123253]
[1754863697255,0.21705978,802.84,802.71,1.1123253]
[1754863697456,0.21705978,802.84,802.72,1.1123253]
[1754863698351,0.21705978,802.84,802.74,1.1123253]
[1754863698755,0.21705978,802.84,802.75,1.1123253]
[1754863699352,0.21705978,802.84,802.67,1.1123253]
[1754863699553,0.21705978,802.84,802.68,1.1123253]
[1754863699957,0.21705978,802.84,802.76,1.1123253]
[1754863700152,0.21705978,802.84,802.73,1.6684879]
[1754863700357,0.21705978,802.84,802.72,1.6684879]
[1754863702258,0.21705978,802.84,802.71,1.6684879]
[1754863702959,0.21705978,802.84,802.8,1.1178169]
[1754863704455,0.21705978,802.84,802.79,1.1178169]
[1754863706359,0.21705978,802.84,801.92,2.8023031]
[1754863706360,0.21705978,802.84,802.78,1.1178169]
[1754863707362,0.21705978,802.84,802.77,1.1178169]
[1754863709263,0.21705978,802.84,802.76,1.1178169]
[1754863709863,0.21705978,802.84,802.78,1.1178169]
[1754863712261,0.21705978,802.84,802.77,1.1178169]
[1754863712767,0.21705978,802.84,802.82,1.1178169]
[1754863714265,0.21705978,802.84,802.73,1.1178169]
[1754863715166,0.21705978,802.84,802.68,1.1178169]
[1754863716165,0.21705978,802.84,802.67,1.1178169]
[1754863717166,0.21705978,802.84,802.66,1.1178169]
[1754863717368,0.21705978,802.84,802.67,1.1178169]
[1754863718868,0.21705978,802.84,802.66,1.1178169]
[1754863719470,0.21705978,802.84,802.67,1.1178169]
[1754863719671,0.21705978,802.84,802.68,1.1178169]
[1754863720463,0.21705978,802.84,802.69,1.1178169]
[1754863721266,0.21705978,802.84,802.7,1.1178169]
[1754863721668,0.21705978,802.84,802.5,1.6684879]
[1754863721669,0.21705978,802.84,802.63,1.1178169]
[1754863721967,0.21705978,802.84,802.69,1.1178169]
[1754863722166,0.21705978,802.84,802.76,1.1178169]
[1754863722369,0.21705978,802.84,802.78,1.1178169]
[1754863722570,0.21705978,802.84,802.8,1.1178169]
[1754863722765,0.21705978,802.84,802.7,1.6684879]
[1754863722966,0.21705978,802.84,802.69,1.6684879]
[1754863723469,0.21705978,802.84,802.7,1.6684879]
[1754863723971,0.21705978,802.84,802.83,1.1165599]
[1754863724271,0.21705978,802.84,802.67,1.6684879]
[1754863724771,0.21705978,802.84,802.83,1.1165934]
[1754863724969,0.21705978,802.84,802.72,1.6684879]
[1754863725269,0.21705978,802.84,802.79,1.6684879]
[1754863725470,0.21705978,802.84,802.8,1.6684879]
[1754863725668,0.21705978,802.84,802.19,2.8023031]
[1754863725870,0.21705978,802.84,802.31,2.8023031]
[1754863727069,0.21705978,802.84,802.27,2.8023031]
[1754863727273,0.21705978,802.84,802.83,1.6751797]
[1754863727875,0.21705978,802.84,802.26,2.8023031]
[1754863729069,0.21705978,802.84,802.23,2.8023031]
[1754863729476,0.21705978,802.84,802.26,2.8023031]
[1754863731174,0.21705978,802.84,802.25,2.8023031]
[1754863731671,0.21705978,802.84,802.16,2.8023031]
[1754863732071,0.21705978,802.84,802.28,2.8023031]
[1754863732671,0.21705978,802.84,802.3,2.8023031]
[1754863733071,0.21705978,802.84,802.77,1.6740835]
[1754863733270,0.21705978,802.84,802.81,1.6740835]
[1754863733474,0.21705978,802.84,802.83,1.6740835]
[1754863734274,0.21705978,802.84,802.82,1.6740835]
[1754863735475,0.21705978,802.84,802.73,1.6740835]
[1754863735671,0.21705978,802.84,802.76,1.6740835]
[1754863737471,0.21705978,802.84,801.34,3.9232243]
[1754863737472,0.21705978,802.84,802.75,1.6740835]
[1754863738375,0.21705978,802.84,802.74,1.6740835]
[1754863738576,0.21705978,802.84,802.75,1.6740835]
[1754863738775,0.21705978,802.84,802.79,1.6740835]
[1754863739372,0.21705978,802.84,802.78,1.6740835]
[1754863740075,0.21705978,802.84,802.81,1.6740835]
[1754863741574,0.21705978,802.84,802.23,2.8023031]
[1754863742179,0.02861141,802.84,802.23,2.8023031]
[1754863742474,0.83777614,804.37,802.22,2.8023031]
[1754863742774,0.83777614,804.37,803.11,1.1137867]
[1754863743276,0.83777614,804.36,803.11,1.1137867]
[1754863743478,0.83777614,804.37,803.1,1.1137867]
[1754863744178,0.83777614,804.37,803.11,1.1137867]
[1754863744479,0.83777614,804.37,803.09,1.1137867]
[1754863745377,0.83777614,804.38,803.1,1.1137867]
[1754863745578,0.21671643,804.06,803.1,1.1137867]
[1754863746776,0.21671643,804.06,802.97,1.1137867]
[1754863746979,0.21671643,804.06,801.28,5.6046062]
[1754863746980,0.21671643,804.06,802.71,1.1137867]
[1754863747377,0.21671643,804.06,802.73,1.1137867]
[1754863747675,0.21671643,804.06,802.75,1.1137867]
[1754863747877,0.21671643,804.06,802.73,1.1137867]
[1754863748378,0.21671643,804.06,802.74,1.1137867]
[1754863749279,0.21671643,804.06,802.75,1.1137867]
[1754863749879,0.21671643,804.06,802.78,1.1137867]
[1754863750578,0.21671643,804.06,802.8,1.1137867]
[1754863750882,0.21671643,804.06,802.75,1.1137867]
[1754863752279,0.21671643,804.06,802.76,1.1137867]
[1754863752882,0.21671643,804.06,802.74,1.1137867]
[1754863753182,0.21671643,804.06,802.75,1.1137867]
[1754863754483,0.21671643,804.06,802.76,1.1137867]
[1754863755187,0.83607119,803.99,802.63,1.1137867]
[1754863756279,0.83607119,803.99,802.64,1.1137867]
[1754863756882,0.83607119,803.98,802.66,1.1137867]
[1754863757181,0.21671643,804.06,802.66,1.1137867]
[1754863757382,0.83703521,803.97,802.67,1.1137867]
[1754863758180,0.83703521,803.97,802.68,1.1137867]
[1754863759382,0.83703521,803.97,802.69,1.1137867]
[1754863759586,0.83703521,803.97,802.7,1.1137867]
[1754863760283,0.83703521,803.96,802.71,1.1137867]
[1754863760685,0.83703521,803.91,802.77,1.1137867]
[1754863761489,0.83703521,803.97,802.71,1.1137867]
[1754863762490,0.83703521,803.96,802.71,1.1137867]
[1754863762698,0.83703521,803.79,802.57,1.1137867]
[1754863762890,0.83703521,803.6,802.43,1.1137867]
[1754863763088,0.83703521,803.55,802.34,1.1137867]
[1754863763390,0.83703521,803.45,802.26,1.1137867]
[1754863763589,0.83703521,803.43,802.24,1.1137867]
[1754863763787,0.83703521,803.41,802.22,1.1137867]
[1754863764488,0.83703521,803.39,802.16,1.1137867]
[1754863764795,0.83703521,803.37,802.15,1.1137867]
[1754863764989,0.83703521,803.29,802.07,1.1137867]
[1754863765187,0.83703521,803.26,802.12,1.1137867]
[1754863765387,0.83703521,803.33,801.94,1.1137867]
[1754863766390,0.83703521,803.34,801.88,1.1137867]
[1754863766691,0.83703521,803.33,801.9,1.1137867]
[1754863766993,0.83703521,803.32,801.89,1.1137867]
[1754863767492,0.83703521,803.33,801.84,1.1137867]
[1754863767989,0.83703521,803.34,801.83,1.1137867]
[1754863768493,0.83703521,803.29,801.69,1.1137867]
[1754863769296,0.83703521,803.28,801.65,1.1137867]
[1754863769494,0.83703521,803.29,801.61,1.1137867]
[1754863770196,0.83703521,803.29,801.6,1.1137867]
[1754863770394,0.83703521,803.3,801.56,1.1137867]
[1754863770996,0.83703521,803.31,801.54,1.1137867]
[1754863771495,0.83703521,803.32,801.5,1.1137867]
[1754863772495,1.6680427,803.78,800.72,0.21702526]
[1754863772496,0.83703521,803.33,801.46,1.1137867]
[1754863773192,0.83703521,803.27,801.53,1.1137867]
[1754863773392,0.83703521,803.26,801.52,1.1137867]
[1754863774495,0.83703521,803.26,801.49,1.1137867]
[1754863774998,0.83703521,803.23,801.53,1.1137867]
[1754863775199,0.83703521,803.25,801.54,1.1137867]
[1754863775493,0.83703521,803.26,801.52,1.1137867]
[1754863776295,0.83703521,803.26,801.51,1.1137867]
[1754863776498,0.83703521,803.27,801.5,1.1137867]
[1754863777299,0.83703521,803.28,801.49,1.1137867]
[1754863777498,0.83703521,803.29,801.48,1.1137867]
[1754863778100,0.83703521,803.29,801.32,1.6706801]
[1754863778101,0.83703521,803.24,801.54,1.1137867]
[1754863778300,0.83703521,803.26,801.52,1.1137867]
[1754863778500,0.83703521,803.26,801.53,1.1137867]
[1754863779302,0.83703521,803.26,801.52,1.1137867]
[1754863779596,0.83703521,803.27,801.51,1.1137867]
[1754863780302,0.83703521,803.37,801.35,1.1137867]
[1754863781303,0.83703521,803.38,801.35,1.1137867]
[1754863781501,0.83703521,803.39,801.34,1.1137867]
[1754863782502,0.83703521,803.4,801.33,1.1137867]
[1754863782902,0.83703521,803.43,801.27,1.1137867]
[1754863783111,0.83703521,803.34,801.17,1.1137867]
[1754863783405,0.83703521,803.26,801.06,1.1137867]
[1754863783604,0.83703521,803.27,801.07,1.1137867]
[1754863784299,0.21671643,804.06,801.2,1.1137867]
[1754863784300,0.83703521,803.34,801.2,1.1137867]
[1754863784505,0.83703521,803.35,801.19,1.1137867]
[1754863785203,0.83703521,803.35,801.18,1.1137867]
[1754863785406,0.83703521,803.34,801.15,1.1137867]
[1754863786507,0.83703521,803.35,801.14,1.1137867]
[1754863787307,0.83703521,803.36,801.13,1.1137867]
[1754863788206,0.83703521,803.36,801.12,1.1137867]
[1754863788607,0.83703521,803.37,801.11,1.1137867]
[1754863789411,0.83703521,803.38,801.1,1.1137867]
[1754863790105,0.83703521,803.39,801.11,1.1137867]
[1754863790309,0.83703521,803.49,801.19,1.1137867]
[1754863790507,0.83703521,803.51,801.21,1.1137867]
[1754863790805,0.83703521,803.5,801.21,1.1137867]
[1754863791206,0.83703521,803.5,801.2,1.1137867]
[1754863794012,0.83703521,803.51,801.19,1.1137867]
[1754863794208,0.83703521,803.51,801.2,1.1137867]
[1754863794512,0.83703521,803.5,801.2,1.1137867]
[1754863794707,0.83703521,803.51,801.2,1.1137867]
[1754863795212,0.83703521,803.5,801.2,1.1137867]
[1754863796412,0.83703521,803.49,801.21,1.1137867]
[1754863797313,0.83703521,803.49,801.22,1.1137867]
[1754863798211,0.83703521,803.48,801.23,1.1137867]
[1754863799210,0.83703521,803.59,801.3,1.1137867]
[1754863799914,1.1120284,803.83,801.3,1.1137867]
[1754863800111,0.82753614,803.59,801.31,1.1137867]
[1754863800315,0.82753614,803.52,801.39,1.1137867]
[1754863800713,0.82753614,803.47,801.45,1.1137867]
[1754863800912,0.82753614,803.63,801.61,1.1137867]
[1754863801112,0.82753614,803.71,801.55,1.1137867]
[1754863801312,0.82753614,803.74,801.58,1.1137867]
[1754863801512,0.82753614,803.72,801.6,1.1137867]
[1754863801812,0.82753614,803.83,801.63,1.1137867]
[1754863802012,0.82753614,803.85,801.64,1.1137867]
[1754863802214,0.82753614,803.84,801.65,1.1137867]
[1754863802413,0.82753614,803.8,801.71,1.1137867]
[1754863803116,0.82836749,803.8,801.71,1.1137867]
[1754863803412,0.82836749,803.79,801.73,1.1137867]
[1754863803610,0.82836749,803.86,801.64,1.1137867]
[1754863803814,0.82836749,803.92,801.71,1.1137867]
[1754863804314,0.82836749,803.9,801.69,1.1137867]
[1754863804615,0.82836749,803.82,801.65,1.1137867]
[1754863805013,0.82836749,803.81,801.64,1.1137867]
[1754863805316,0.82836749,803.69,801.57,1.1137867]
[1754863805517,0.82836749,803.53,801.59,1.1137867]
[1754863805717,0.21671643,804.06,800.57,3.01938319]
[1754863805718,0.82836749,803.58,801.52,1.1137867]
[1754863805919,0.82836749,803.58,801.53,1.1137867]
[1754863806217,0.82836749,803.57,801.54,1.1137867]
[1754863806421,0.82836749,803.54,801.57,1.1137867]
[1754863807216,0.82836749,803.53,801.58,1.1137867]
[1754863807416,0.82836749,803.54,801.6,1.1137867]
[1754863807616,0.82836749,803.55,801.61,1.1137867]
[1754863807918,0.82836749,803.56,801.59,1.1137867]
[1754863808316,0.82836749,803.56,801.61,1.1137867]
[1754863808722,0.82836749,803.58,801.59,1.1137867]
[1754863809221,0.82836749,803.58,801.6,1.1137867]
[1754863809419,0.82836749,803.57,801.61,1.1137867]
[1754863810222,0.82836749,803.57,801.62,1.1137867]
[1754863810417,0.82836749,803.57,801.63,1.1137867]
[1754863811221,0.82836749,803.57,801.64,1.1137867]
[1754863811419,0.82836749,803.57,801.66,1.1137867]
[1754863811723,0.82836749,803.54,801.63,1.1137867]
[1754863812119,0.82836749,803.54,801.64,1.1137867]
[1754863812523,0.82836749,803.54,801.66,1.1137867]
[1754863813221,0.82836749,803.54,801.67,1.1137867]
[1754863813424,0.82836749,803.53,801.69,1.1137867]
[1754863814025,0.82836749,803.54,801.69,1.1137867]
[1754863814318,0.82836749,803.53,801.72,1.1137867]
[1754863815220,0.82836749,803.61,801.82,1.1137867]
[1754863815520,0.21671643,804.06,801.88,1.1137867]
[1754863815521,0.82836749,803.58,801.88,1.1137867]
[1754863815719,0.82836749,803.57,801.88,1.1137867]
[1754863816121,0.82836749,803.58,801.88,1.1137867]
[1754863816321,0.82836749,803.56,801.9,1.1137867]
[1754863816525,0.82836749,803.55,801.92,1.1137867]
[1754863817022,0.21671643,804.06,800.57,0.21708009]
[1754863817023,0.82836749,803.45,801.81,1.1137867]
[1754863817326,0.82836749,803.46,801.82,1.1137867]
[1754863817526,0.82836749,803.45,801.84,1.1137867]
[1754863818230,0.82836749,803.45,801.85,1.1137867]
[1754863818425,0.82836749,803.44,801.88,1.1137867]
[1754863819129,0.82836749,803.45,801.88,1.1137867]
[1754863819434,0.82836749,803.44,801.93,1.1137867]
[1754863820326,0.82836749,803.43,801.93,1.1137867]
[1754863820530,0.82836749,803.43,801.97,1.1137867]
[1754863821130,0.82836749,803.43,801.98,1.1137867]
[1754863821326,0.82836749,803.43,801.97,1.1137867]
[1754863821527,0.82836749,803.42,802.02,1.1137867]
[1754863821729,0.82836749,803.43,802.01,1.1137867]
[1754863822029,0.82836749,803.43,802.02,1.1137867]
[1754863822426,0.82836749,803.42,802.08,1.1137867]
[1754863823026,0.82836749,803.43,802.06,1.1137867]
[1754863823431,0.82836749,803.43,802.07,1.1137867]
[1754863824132,0.82836749,803.43,802.08,1.1137867]
[1754863825232,0.82836749,803.4,802.05,1.1137867]
[1754863825731,0.82836749,803.4,802.04,1.1137867]
[1754863825932,0.82836749,803.39,802.04,1.1137867]
[1754863826532,0.82836749,803.41,801.98,1.1137867]
[1754863826832,0.82836749,803.28,801.96,1.1137867]
[1754863828232,0.82836749,803.32,801.98,1.1137867]
[1754863828428,0.82836749,803.32,801.99,1.1137867]
[1754863828930,0.82836749,803.33,801.99,1.1137867]
[1754863830034,0.82836749,803.31,802.0,1.1137867]
[1754863830233,0.82836749,803.24,802.1,1.1137867]
[1754863831234,0.82836749,803.24,802.11,1.1137867]
[1754863831532,0.21671643,804.06,802.11,1.1137867]
[1754863831533,0.82836749,803.23,802.11,1.1137867]
[1754863832135,0.82836749,803.24,802.1,1.1137867]
[1754863832335,0.82836749,803.23,802.11,1.1137867]
[1754863832729,0.82836749,803.2,802.15,1.1137867]
[1754863834731,0.82836749,803.21,802.14,1.1137867]
[1754863835234,0.82836749,803.2,802.14,1.1137867]
[1754863836235,0.82836749,803.2,802.15,1.1137867]
[1754863838032,0.82836749,803.2,802.16,1.1137867]
[1754863838236,0.82836749,803.17,802.19,1.1137867]
[1754863839631,0.82836749,803.17,802.03,1.1137867]
[1754863839935,0.82836749,803.29,802.03,1.1137867]
[1754863840337,0.82836749,803.29,802.04,1.1137867]
[1754863841040,0.82836749,803.35,802.07,1.1137867]
[1754863841240,0.82836749,803.37,802.07,1.1137867]